fUSD/lending_fUSD_20250616
["ID","MTS","AMOUNT","RATE_DAILY","PERIOD"]
[366068722,1750047053922,-151.0,0.00016581,2]
[366068723,1750047053932,-151.0,0.00016581,2]
[366068724,1750047053941,-230.747168,0.00016581,2]
[366068725,1750047053951,-151.446172,0.00016581,2]
[366068726,1750047053961,-151.0,0.00016581,2]
[366068727,1750047053971,-291.565943,0.00016581,2]
[366068728,1750047053980,-199.837897,0.00016581,2]
[366068729,1750047053990,-343.756474,0.00016581,2]
[366068730,1750047054000,-343.756474,0.00016581,2]
[366068731,1750047054392,-151.0,0.00016581,2]
[366068732,1750047054409,-151.0,0.00016581,2]
[366068733,1750047054419,-151.0,0.00016581,2]
[366068734,1750047054428,-151.583738,0.00016581,2]
[366068735,1750047054438,-281.748615,0.00016581,2]
[366068736,1750047054448,-281.748615,0.00016581,2]
[366068737,1750047054458,-151.90546,0.00016581,2]
[366068738,1750047054468,-151.0,0.00016581,2]
[366068739,1750047054479,-151.0,0.00016581,2]
[366068740,1750047054489,-197.514728,0.00016581,2]
[366068741,1750047054498,-197.514728,0.00016581,2]
[366068742,1750047054507,-151.0,0.00016581,2]
[366068743,1750047054518,-151.0,0.00016581,2]
[366068744,1750047054527,-151.774858,0.00016581,2]
[366068745,1750047054536,-195.24617,0.00016581,2]
[366068746,1750047054549,-195.24617,0.00016581,2]
[366068747,1750047054559,-189.629544,0.00016581,2]
[366068748,1750047054568,-189.629544,0.00016581,2]
[366068749,1750047054579,-1159.78202,0.00016581,2]
[366068750,1750047054588,-153.093908,0.00016581,2]
[366068751,1750047054598,-1159.78202,0.00016581,2]
[366068752,1750047054608,-164.717378,0.00016581,2]
[366068753,1750047054618,-164.717378,0.00016581,2]
[366068754,1750047054627,-1625.2144396,0.00016581,2]
[366068755,1750047054637,-151.0,0.00016581,2]
[366068756,1750047054646,-151.0,0.00016581,2]
[366068757,1750047054656,-187.797267,0.00016581,2]
[366068758,1750047054665,-187.797267,0.00016581,2]
[366068759,1750047054675,-546.772754,0.00016581,2]
[366068760,1750047054685,-546.772754,0.00016581,2]
[366068761,1750047054694,-151.0,0.00016581,2]
[366068762,1750047054703,-342.554427,0.00016581,2]
[366068763,1750047054713,-151.0,0.00016581,2]
[366068764,1750047054722,-342.554427,0.00016581,2]
[366068765,1750047054731,-154.193656,0.00016581,2]
[366068766,1750047054741,-407.236363,0.00016581,2]
[366068767,1750047054750,-407.236363,0.00016581,2]
[366068768,1750047054760,-5341.0116847,0.00016581,2]
[366068769,1750047054770,-151.0,0.00016581,2]
[366068770,1750047054779,-3472.3413582,0.00016581,2]
[366068771,1750047054789,-151.0,0.00016581,2]
[366068772,1750047054800,-151.0,0.00016581,2]
[366068773,1750047054809,-151.0,0.00016581,2]
[366068774,1750047054820,-151.0,0.00016581,2]
[366068775,1750047054830,-151.0,0.00016581,2]
[366068776,1750047054840,-1658.28001,0.00016581,2]
[366068777,1750047054850,-1848.887203,0.00016581,2]
[366068778,1750047054861,-1848.887203,0.00016581,2]
[366068779,1750047054871,-151.0,0.00016581,2]
[366068780,1750047054881,-151.0,0.00016581,2]
[366068781,1750047054890,-81426.25756498,0.00016581,2]
[366068782,1750047055523,-617.95656949,0.00016581,2]
[366068783,1750047056345,-51.32291603,0.00016438,2]
[366068784,1750047057448,-829.69708397,0.00016438,2]
[366068785,1750047057458,-490.0,0.00016438,2]
[366068786,1750047057468,-3166.3,0.00016438,2]
[366068787,1750047057482,-490.0,0.00016438,2]
[366068788,1750047057492,-424.00291603,0.00016462,2]
[366068790,1750047130042,400.0,0.000159,5]
[366068791,1750047132162,900.0,0.00016,5]
[366068793,1750047251682,-285.83,0.00015496,2]
[366068794,1750047257025,1000.0,0.00015487,2]
[366068795,1750047263478,-1795.69,0.00015496,2]
[366068796,1750047361412,195.0,0.0002465,120]
[366068797,1750047372159,161.4,0.00013699,2]
[366068799,1750047401143,3000.0,0.00024658,120]
[366068800,1750047493475,4769.0,0.00015206,2]
[366068801,1750047497662,4769.0,0.00015258,2]
[366068802,1750047621227,488.0,0.00024658,120]
[366068803,1750047702297,-195.0,0.00015494,2]
[366068804,1750047704993,-1509.23,0.00015491,2]
[366068805,1750047983434,334.98,0.00015357,2]
[366068806,1750048026209,300.0,0.000158,5]
[366068807,1750048028255,700.0,0.000159,5]
[366068838,1750048060891,152.4505187,0.000246,120]
[366068839,1750048095731,203.0,0.00014929,2]
[366068840,1750048154412,500.0,0.00015242,3]
[366068844,1750048159321,2407.27,0.00015242,2]
[366068845,1750048166638,2852.97,0.00015235,2]
[366068858,1750048231985,-195.0,0.00015599,2]
[366068859,1750048231996,-231.845,0.00015671,2]
[366068860,1750048232036,-18.155,0.00015671,2]
[366068861,1750048232046,-499.58786115,0.0001574,2]
[366068862,1750048232057,-428.55284362,0.00015743,2]
[366068863,1750048232070,-690.22759958,0.00015743,2]
[366068864,1750048232083,-500.0,0.00015743,2]
[366068865,1750048232095,-3150.2195568,0.00015743,2]
[366068866,1750048232106,-250.0,0.0001576,2]
[366068867,1750048232116,-835.63413257,0.00015773,2]
[366068868,1750048232126,-600.0,0.00015936,4]
[366068869,1750048232136,-300.0,0.00015988,2]
[366068870,1750048232148,-300.0,0.00015989,2]
[366068871,1750048232158,-1200.0,0.00015989,2]
[366068872,1750048232168,-3728.09985581,0.0001599,2]
[366068873,1750048232190,-1073.98772677,0.0001599,2]
[366068874,1750048232218,-2340.76841742,0.0001599,2]
[366068875,1750048232228,-207.4,0.0001599,2]
[366068876,1750048232238,-300.0,0.00015998,2]
[366068877,1750048232248,-300.0,0.00015999,2]
[366068878,1750048232259,-3157.74,0.00016,2]
[366068879,1750048232269,-3157.74,0.00016,2]
[366068880,1750048232279,-3157.74,0.00016,2]
[366068881,1750048232289,-3157.74,0.00016,2]
[366068882,1750048232299,-1700.84620585,0.00016,2]
[366068883,1750048232312,-1456.89379415,0.00016,2]
[366068884,1750048232322,-920.05171835,0.00016,2]
[366068885,1750048232332,-7407.141672,0.00016045,2]
[366068886,1750048232343,-2070.44296265,0.0001609,2]
[366068887,1750048232352,-300.13,0.00016099,2]
[366068888,1750048232362,-152.58,0.00016099,2]
[366068889,1750048232372,-302.64,0.00016099,2]
[366068890,1750048232382,-300.14,0.000161,2]
[366068891,1750048232392,-305.82,0.000161,2]
[366068892,1750048232402,-301.41,0.000161,2]
[366068893,1750048232411,-305.6,0.000161,2]
[366068894,1750048232421,-300.94,0.000161,2]
[366068895,1750048232431,-304.92,0.000161,2]
[366068896,1750048232441,-303.68,0.000161,2]
[366068898,1750048232451,-302.02,0.000161,2]
[366068900,1750048232461,-301.79,0.000161,2]
[366068901,1750048232471,-1100.0,0.000161,5]
[366068903,1750048232480,-4930.0725335,0.000161,2]
[366068905,1750048232492,-1249.85253375,0.000161,2]
[366068907,1750048232504,-1164.2845313,0.000161,2]
[366068909,1750048232530,-336.99631531,0.000161,2]
[366068910,1750048232540,-506.29033979,0.00016155,2]
[366068911,1750048232553,-5255.69697807,0.00016155,2]
[366068912,1750048236784,-1433.99316942,0.00016155,2]
[366069005,1750048237873,-769.4300454,0.00016155,2]
[366069007,1750048237884,-274.8199546,0.00016175,2]
[366069029,1750048238109,-305.00032564,0.00016175,2]
[366069031,1750048238119,-1000.0,0.000162,2]
[366069033,1750048238129,-1441.45016662,0.000162,5]
[366069039,1750048238176,-58.54983338,0.000162,5]
[366069041,1750048238186,-8260.13072239,0.0001621,2]
[366069043,1750048238196,-156.24964525,0.0001622,2]
[366069045,1750048238206,-1306.794753,0.00016258,2]
[366069047,1750048238216,-620.27504598,0.00016265,2]
[366069049,1750048238229,-7945.48051313,0.00016265,2]
[366069051,1750048238239,-151.0,0.0001629,2]
[366069053,1750048238249,-151.0,0.0001629,2]
[366069055,1750048238259,-153.37631158,0.0001629,2]
[366069057,1750048238271,-500.0,0.0001629,2]
[366069059,1750048238281,-500.0,0.0001629,2]
[366069061,1750048238291,-500.0,0.0001629,2]
[366069063,1750048238301,-500.0,0.0001629,2]
[366069065,1750048238311,-500.0,0.0001629,2]
[366069067,1750048238321,-500.0,0.0001629,2]
[366069069,1750048238331,-437.83457863,0.0001629,2]
[366069071,1750048238341,-500.0,0.0001629,2]
[366069073,1750048238351,-500.0,0.0001629,2]
[366069075,1750048238361,-500.0,0.0001629,2]
[366069077,1750048238371,-500.0,0.0001629,2]
[366069079,1750048238380,-418.40847521,0.0001629,2]
[366069081,1750048238391,-500.0,0.0001629,2]
[366069083,1750048238401,-500.0,0.0001629,2]
[366069085,1750048238411,-500.0,0.0001629,2]
[366069086,1750048238420,-500.0,0.0001629,2]
[366069088,1750048238429,-500.0,0.0001629,2]
[366069090,1750048238439,-500.0,0.0001629,2]
[366069091,1750048238448,-500.0,0.0001629,2]
[366069093,1750048238458,-151.0,0.0001629,2]
[366069095,1750048238468,-500.0,0.0001629,2]
[366069096,1750048238478,-500.0,0.0001629,2]
[366069098,1750048238488,-151.0,0.0001629,2]
[366069100,1750048238498,-500.0,0.0001629,2]
[366069102,1750048238508,-151.0,0.0001629,2]
[366069104,1750048238518,-500.0,0.0001629,2]
[366069106,1750048238528,-151.0,0.0001629,2]
[366069107,1750048238537,-500.0,0.0001629,2]
[366069109,1750048238547,-151.0,0.0001629,2]
[366069111,1750048238557,-500.0,0.0001629,2]
[366069113,1750048238567,-151.0,0.0001629,2]
[366069115,1750048238576,-500.0,0.0001629,2]
[366069116,1750048238586,-151.0,0.0001629,2]
[366069118,1750048238595,-207.94777823,0.0001629,2]
[366069120,1750048238605,-500.0,0.0001629,2]
[366069122,1750048238614,-151.0,0.0001629,2]
[366069123,1750048238624,-151.0,0.0001629,2]
[366069125,1750048238634,-1900.0,0.000163,5]
[366069127,1750048238644,-4255.29837216,0.000163,2]
[366069129,1750048238653,-4255.29837192,0.000163,2]
[366069131,1750048238662,-3406.85559914,0.000163,2]
[366069237,1750048240079,-848.44277278,0.000163,2]
[366069238,1750048240090,-714.36884992,0.000163,2]
[366069239,1750048240189,-2993.47420404,0.000163,2]
[366069240,1750048240201,-547.45531796,0.000163,2]
[366069242,1750048240210,-4255.29837192,0.000163,2]
[366069244,1750048240219,-4255.29837192,0.000163,2]
[366069246,1750048240229,-4255.29837192,0.000163,2]
[366069247,1750048240238,-4255.29837192,0.000163,2]
[366069248,1750048240248,-4255.29837192,0.000163,2]
[366069249,1750048240445,-4255.29837192,0.000163,2]
[366069250,1750048240460,-4255.29837192,0.000163,2]
[366069251,1750048240470,-4255.29837192,0.000163,2]
[366069252,1750048240480,-4255.29837192,0.00016314,2]
[366069253,1750048240490,-8882.6885148,0.0001632,2]
[366069254,1750048240500,-240.35832168,0.00016337,2]
[366069255,1750048240510,-171.78975076,0.00016338,2]
[366069256,1750048240520,-187.88512281,0.00016338,2]
[366069257,1750048240530,-154.08372252,0.00016338,2]
[366069258,1750048240540,-324.67130341,0.00016338,2]
[366069259,1750048240549,-1072.76814856,0.00016338,2]
[366069260,1750048240559,-578.7754,0.00016338,2]
[366069261,1750048240569,-23169.5793,0.00016338,2]
[366069262,1750048240579,-11625.4702,0.00016338,2]
[366069263,1750048240589,-228.0124,0.00016338,2]
[366069264,1750048240599,-2500.0,0.00016338,2]
[366069265,1750048240609,-151.0,0.00016345,2]
[366069266,1750048240620,-4255.29837192,0.00016348,2]
[366069267,1750048240630,-300.73,0.00016357,2]
[366069268,1750048240640,-324.6713034,0.00016375,2]
[366069269,1750048240653,-9211.34798985,0.00016375,2]
[366069270,1750048240664,-4255.29837192,0.00016383,2]
[366069271,1750048240673,-1135.0,0.000164,2]
[366069272,1750048240683,-300.0,0.000164,5]
[366069273,1750048240692,-152.56284915,0.000164,2]
[366069274,1750048240702,-324.6713034,0.00016411,2]
[366069275,1750048240711,-4255.29837192,0.00016417,2]
[366069276,1750048240721,-181.6,0.00016428,2]
[366069277,1750048240731,-9552.16786547,0.0001643,2]
[366069278,1750048240745,-833.8156298,0.00016437,2]
[366069279,1750048240765,-302.35,0.00016437,2]
[366069280,1750048240786,-305.83,0.00016437,2]
[366069281,1750048240807,-302.0,0.00016437,2]
[366069282,1750048240828,-303.3,0.00016437,2]
[366069283,1750048240849,-1004.42124907,0.00016437,2]
[366069284,1750048240870,-259.2340648,0.00016437,2]
[366069285,1750048240890,-155.727,0.00016437,2]
[366069286,1750048240922,-232.912338,0.00016438,2]
[366069287,1750048240945,-481.215959,0.00016438,2]
[366069288,1750048240958,-232.912338,0.00016438,2]
[366069289,1750048240968,-481.215959,0.00016438,2]
[366069290,1750048240978,-151.0,0.00016438,2]
[366069291,1750048240987,-320.968554,0.00016438,2]
[366069292,1750048240997,-320.968554,0.00016438,2]
[366069293,1750048241007,-151.0,0.00016438,2]
[366069294,1750048241017,-151.0,0.00016438,2]
[366069295,1750048241027,-626.110263,0.00016438,2]
[366069296,1750048241037,-626.110263,0.00016438,2]
[366069297,1750048241047,-151.0,0.00016438,2]
[366069298,1750048241057,-251.809895,0.00016438,2]
[366069299,1750048241067,-259.249812,0.00016438,2]
[366069300,1750048241077,-151.0,0.00016438,2]
[366069301,1750048241087,-259.249812,0.00016438,2]
[366069302,1750048241097,-161.95542812,0.00016438,2]
[366069303,1750048241106,-474.4062018,0.00016438,2]
[366069304,1750048241116,-164.301089,0.00016438,2]
[366069305,1750048241126,-164.301089,0.00016438,2]
[366069306,1750048241136,-491.1211152,0.00016438,2]
[366069307,1750048241146,-216.39966314,0.00016438,2]
[366069308,1750048241156,-490.0,0.00016438,2]
[366069309,1750048241166,-151.0,0.00016438,2]
[366069310,1750048241176,-491.26814246,0.00016438,2]
[366069311,1750048241186,-490.0,0.00016438,2]
[366069312,1750048241196,-490.69535708,0.00016438,2]
[366069313,1750048241206,-490.0,0.00016438,2]
[366069314,1750048241215,-491.35904544,0.00016438,2]
[366069315,1750048241224,-490.61557102,0.00016438,2]
[366069316,1750048241234,-490.0,0.00016438,2]
[366069317,1750048241244,-618.41489746,0.00016438,2]
[366069318,1750048241253,-491.5086276,0.00016438,2]
[366069319,1750048241263,-490.0,0.00016438,2]
[366069320,1750048241273,-490.0,0.00016438,2]
[366069321,1750048241283,-491.51373169,0.00016438,2]
[366069322,1750048241294,-491.08888575,0.00016438,2]
[366069323,1750048241303,-490.0,0.00016438,2]
[366069324,1750048241313,-488.85326175,0.00016438,2]
[366069325,1750048241323,-491.18716322,0.00016438,2]
[366069326,1750048241333,-495.76487846,0.00016438,2]
[366069327,1750048241342,-490.0,0.00016438,2]
[366069328,1750048241351,-490.0,0.00016438,2]
[366069329,1750048241361,-490.0,0.00016438,2]
[366069330,1750048241370,-490.70243725,0.00016438,2]
[366069331,1750048241380,-490.49685303,0.00016438,2]
[366069332,1750048241389,-490.32673116,0.00016438,2]
[366069333,1750048241400,-770.58,0.00016438,2]
[366069334,1750048241409,-598.17495111,0.00016438,2]
[366069335,1750048241419,-490.0,0.00016438,2]
[366069336,1750048241428,-669.66,0.00016438,2]
[366069337,1750048241438,-490.0,0.00016438,2]
[366069338,1750048241447,-496.82974041,0.00016438,2]
[366069339,1750048241457,-641.61,0.00016438,2]
[366069340,1750048241467,-490.0,0.00016438,2]
[366069341,1750048241476,-496.00556667,0.00016438,2]
[366069342,1750048241485,-490.0,0.00016438,2]
[366069343,1750048241495,-517.26,0.00016438,2]
[366069344,1750048241504,-490.0,0.00016438,2]
[366069345,1750048241514,-490.0,0.00016438,2]
[366069346,1750048241523,-708.49,0.00016438,2]
[366069347,1750048241533,-309.99,0.00016438,2]
[366069348,1750048241542,-613.97,0.00016438,2]
[366069349,1750048241552,-490.0,0.00016438,2]
[366069350,1750048241561,-831.13,0.00016438,2]
[366069351,1750048241571,-603.0,0.00016438,2]
[366069352,1750048241580,-552.5,0.00016438,2]
[366069353,1750048241589,-490.0,0.00016438,2]
[366069354,1750048241599,-490.0,0.00016438,2]
[366069355,1750048241609,-493.50828605,0.00016438,2]
[366069356,1750048241619,-490.0,0.00016438,2]
[366069357,1750048241628,-492.30277084,0.00016438,2]
[366069358,1750048241638,-411.74129481,0.00016438,2]
[366069359,1750048241649,-495.34642172,0.00016438,2]
[366069360,1750048241659,-490.0,0.00016438,2]
[366069361,1750048241668,-300.0,0.00016438,2]
[366069362,1750048241679,-490.0,0.00016438,2]
[366069363,1750048241688,-490.0,0.00016438,2]
[366069364,1750048241698,-490.0,0.00016438,2]
[366069365,1750048241708,-490.0,0.00016438,2]
[366069366,1750048241717,-490.0,0.00016438,2]
[366069367,1750048241726,-499.65872488,0.00016438,2]
[366069368,1750048241736,-492.73802648,0.00016438,2]
[366069369,1750048241746,-490.0,0.00016438,2]
[366069370,1750048241756,-1265.01,0.00016438,2]
[366069371,1750048241766,-497.12236318,0.00016438,2]
[366069372,1750048241776,-490.0,0.00016438,2]
[366069373,1750048241786,-490.0,0.00016438,2]
[366069374,1750048241795,-490.0,0.00016438,2]
[366069375,1750048241805,-526.78,0.00016438,2]
[366069376,1750048241815,-999.05,0.00016438,2]
[366069377,1750048241825,-491.95029201,0.00016438,2]
[366069378,1750048241835,-490.0,0.00016438,2]
[366069379,1750048241845,-500.0,0.00016438,2]
[366069380,1750048241855,-279.52902608,0.00016438,2]
[366069381,1750048241864,-500.0,0.00016438,2]
[366069382,1750048241874,-500.0,0.00016438,2]
[366069383,1750048241884,-500.0,0.00016438,2]
[366069384,1750048241893,-500.0,0.00016438,2]
[366069385,1750048241903,-500.0,0.00016438,2]
[366069386,1750048241916,-490.0,0.00016438,2]
[366069387,1750048241926,-500.0,0.00016438,2]
[366069388,1750048241936,-490.0,0.00016438,2]
[366069389,1750048241945,-490.0,0.00016438,2]
[366069390,1750048241957,-490.0,0.00016438,2]
[366069391,1750048241967,-597.45,0.00016438,2]
[366069392,1750048241976,-748.85,0.00016438,2]
[366069393,1750048241989,-627.52,0.00016438,2]
[366069394,1750048241998,-490.0,0.00016438,2]
[366069395,1750048242009,-493.13939244,0.00016438,2]
[366069396,1750048242019,-490.0,0.00016438,2]
[366069397,1750048242028,-963.73,0.00016438,2]
[366069398,1750048242038,-492.43317847,0.00016438,2]
[366069399,1750048242047,-210.412489,0.00016438,2]
[366069400,1750048242057,-491.57658747,0.00016438,2]
[366069401,1750048242068,-490.0,0.00016438,2]
[366069402,1750048242079,-491.73065795,0.00016438,2]
[366069403,1750048242088,-600.0,0.00016438,2]
[366069404,1750048242098,-490.0,0.00016438,2]
[366069405,1750048242108,-490.0,0.00016438,2]
[366069406,1750048242118,-490.0,0.00016438,2]
[366069407,1750048242128,-210.412489,0.00016438,2]
[366069408,1750048242139,-494.94945705,0.00016438,2]
[366069409,1750048242153,-490.0,0.00016438,2]
[366069410,1750048242163,-490.0,0.00016438,2]
[366069411,1750048242174,-411.20649589,0.00016438,2]
[366069412,1750048242184,-495.3365194,0.00016438,2]
[366069413,1750048242194,-490.0,0.00016438,2]
[366069414,1750048242204,-494.61595101,0.00016438,2]
[366069415,1750048242214,-490.0,0.00016438,2]
[366069416,1750048242224,-490.0,0.00016438,2]
[366069417,1750048242234,-495.31920549,0.00016438,2]
[366069418,1750048242244,-509.8280757,0.00016438,2]
[366069419,1750048242254,-490.0,0.00016438,2]
[366069420,1750048242265,-490.0,0.00016438,2]
[366069421,1750048242275,-824.89,0.00016438,2]
[366069422,1750048242285,-490.0,0.00016438,2]
[366069423,1750048242295,-310.58384037,0.00016438,2]
[366069424,1750048242305,-490.0,0.00016438,2]
[366069425,1750048242315,-490.0,0.00016438,2]
[366069426,1750048242325,-490.0,0.00016438,2]
[366069427,1750048242335,-490.0,0.00016438,2]
[366069428,1750048242344,-490.0,0.00016438,2]
[366069429,1750048242355,-490.0,0.00016438,2]
[366069430,1750048242364,-676.8,0.00016438,2]
[366069431,1750048242374,-490.0,0.00016438,2]
[366069432,1750048242384,-490.0,0.00016438,2]
[366069433,1750048242394,-490.0,0.00016438,2]
[366069434,1750048242406,-494.05734832,0.00016438,2]
[366069435,1750048242416,-494.14761782,0.00016438,2]
[366069436,1750048242426,-563.99,0.00016438,2]
[366069437,1750048242435,-559.22061818,0.00016438,2]
[366069438,1750048242446,-495.40227159,0.00016438,2]
[366069439,1750048242455,-663.67,0.00016438,2]
[366069440,1750048242465,-492.95505936,0.00016438,2]
[366069441,1750048242474,-490.0,0.00016438,2]
[366069442,1750048242485,-495.45223218,0.00016438,2]
[366069443,1750048242494,-688.01,0.00016438,2]
[366069444,1750048242504,-490.0,0.00016438,2]
[366069445,1750048242513,-690.29,0.00016438,2]
[366069446,1750048242523,-495.01054497,0.00016438,2]
[366069447,1750048242532,-490.0,0.00016438,2]
[366069448,1750048242541,-490.0,0.00016438,2]
[366069449,1750048242552,-493.90084689,0.00016438,2]
[366069450,1750048242561,-490.0,0.00016438,2]
[366069451,1750048242570,-492.39604357,0.00016438,2]
[366069452,1750048242580,-512.15,0.00016438,2]
[366069453,1750048242589,-705.55,0.00016438,2]
[366069454,1750048242599,-490.0,0.00016438,2]
[366069455,1750048242608,-502.21,0.00016438,2]
[366069456,1750048242617,-494.39771913,0.00016438,2]
[366069457,1750048242627,-490.0,0.00016438,2]
[366069458,1750048242636,-490.0,0.00016438,2]
[366069459,1750048242646,-466.07498801,0.00016438,2]
[366069460,1750048242656,-490.0,0.00016438,2]
[366069461,1750048242666,-490.0,0.00016438,2]
[366069462,1750048242675,-603.81324061,0.00016438,2]
[366069463,1750048242684,-490.0,0.00016438,2]
[366069464,1750048242694,-508.1949713,0.00016438,2]
[366069465,1750048242703,-490.0,0.00016438,2]
[366069467,1750048242713,-490.0,0.00016438,2]
[366069468,1750048242722,-490.0,0.00016438,2]
[366069469,1750048242732,-828.06,0.00016438,2]
[366069470,1750048242741,-490.0,0.00016438,2]
[366069471,1750048242751,-490.0,0.00016438,2]
[366069472,1750048242761,-490.77245717,0.00016438,2]
[366069473,1750048242770,-494.96482603,0.00016438,2]
[366069474,1750048242779,-493.02469441,0.00016438,2]
[366069475,1750048242789,-499.52003681,0.00016438,2]
[366069476,1750048242799,-490.0,0.00016438,2]
[366069477,1750048242809,-1646.97,0.00016438,2]
[366069478,1750048242818,-710.9,0.00016438,2]
[366069479,1750048242828,-471.39306888,0.00016438,2]
[366069480,1750048242837,-490.0,0.00016438,2]
[366069481,1750048242847,-490.0,0.00016438,2]
[366069482,1750048242857,-158.41159934,0.00016438,2]
[366069483,1750048242867,-490.0,0.00016438,2]
[366069484,1750048242876,-490.0,0.00016438,2]
[366069485,1750048242886,-490.0,0.00016438,2]
[366069486,1750048242897,-493.60345217,0.00016438,2]
[366069487,1750048242909,-668.92,0.00016438,2]
[366069488,1750048242919,-494.57989517,0.00016438,2]
[366069489,1750048242930,-490.0,0.00016438,2]
[366069491,1750048242940,-817.79,0.00016438,2]
[366069492,1750048242950,-490.0,0.00016438,2]
[366069493,1750048242961,-490.0,0.00016438,2]
[366069494,1750048242971,-490.0,0.00016438,2]
[366069495,1750048242981,-490.0,0.00016438,2]
[366069496,1750048242991,-490.0,0.00016438,2]
[366069497,1750048243002,-490.0,0.00016438,2]
[366069498,1750048243012,-490.0,0.00016438,2]
[366069499,1750048243022,-490.0,0.00016438,2]
[366069500,1750048243033,-492.60010863,0.00016438,2]
[366069501,1750048243043,-490.0,0.00016438,2]
[366069502,1750048243053,-397.81115585,0.00016438,2]
[366069503,1750048243064,-490.0,0.00016438,2]
[366069504,1750048243075,-490.0,0.00016438,2]
[366069505,1750048243085,-490.0,0.00016438,2]
[366069506,1750048243095,-422.05225712,0.00016438,2]
[366069507,1750048243104,-490.0,0.00016438,2]
[366069508,1750048243114,-427.8416371,0.00016438,2]
[366069509,1750048243124,-490.0,0.00016438,2]
[366069510,1750048243134,-490.0,0.00016438,2]
[366069511,1750048243144,-490.0,0.00016438,2]
[366069512,1750048243158,-490.42353218,0.00016438,2]
[366069513,1750048243168,-490.0,0.00016438,2]
[366069514,1750048243179,-492.16599123,0.00016438,2]
[366069515,1750048243189,-499.03835969,0.00016438,2]
[366069516,1750048243199,-490.0,0.00016438,2]
[366069517,1750048243209,-490.0,0.00016438,2]
[366069518,1750048243219,-490.0,0.00016438,2]
[366069519,1750048243229,-490.0,0.00016438,2]
[366069520,1750048243239,-513.33,0.00016438,2]
[366069521,1750048243249,-493.49968535,0.00016438,2]
[366069522,1750048243260,-151.0,0.00016438,2]
[366069523,1750048243270,-490.0,0.00016438,2]
[366069524,1750048243280,-490.0,0.00016438,2]
[366069525,1750048243290,-500.0,0.00016438,2]
[366069526,1750048243301,-500.0,0.00016438,2]
[366069527,1750048243316,-315.62313998,0.00016438,2]
[366069528,1750048243327,-500.0,0.00016438,2]
[366069530,1750048243337,-151.0,0.00016438,2]
[366069532,1750048243347,-530.50467146,0.00016438,2]
[366069533,1750048243356,-483.2988675,0.00016438,2]
[366069535,1750048243365,-490.0,0.00016438,2]
[366069536,1750048243375,-490.0,0.00016438,2]
[366069537,1750048243385,-711.88,0.00016438,2]
[366069538,1750048243395,-490.0,0.00016438,2]
[366069539,1750048243406,-490.0,0.00016438,2]
[366069540,1750048243416,-496.48919933,0.00016438,2]
[366069541,1750048243426,-490.0,0.00016438,2]
[366069542,1750048243436,-490.0,0.00016438,2]
[366069543,1750048243445,-490.0,0.00016438,2]
[366069545,1750048243455,-503.78278697,0.00016438,2]
[366069547,1750048243466,-550.21,0.00016438,2]
[366069549,1750048243475,-503.79411564,0.00016438,2]
[366069551,1750048243485,-491.99752988,0.00016438,2]
[366069553,1750048243495,-490.0,0.00016438,2]
[366069555,1750048243504,-492.06929683,0.00016438,2]
[366069556,1750048243515,-553.63,0.00016438,2]
[366069557,1750048243524,-499.48824707,0.00016438,2]
[366069558,1750048243534,-490.0,0.00016438,2]